[Event "Late-Titled-Tuesday-Blitz-April-02-2024"]
[Site "Chess.com"]
[Date "2024.04.02"]
[Round "8"]
[White "Hrant_ChessMood"]
[Black "Hamisandwich"]
[Result "1-0"]
[WhiteElo "2931"]
[BlackElo "2714"]
[TimeControl "180+1"]
[EndTime "15:27:36 PDT"]
[Termination "Hrant_ChessMood won by resignation"]

1. c4 {[%clk 0:03:00.9]} 1... e5 {[%clk 0:02:59.4]} 2. Nc3 {[%clk 0:02:58.7]}
2... Bb4 {[%clk 0:02:58.4]} 3. Nd5 {[%clk 0:02:58.1]} 3... Be7 {[%clk
0:02:56.9]} 4. d4 {[%clk 0:02:57.3]} 4... c6 {[%clk 0:02:54.6]} 5. Nxe7 {[%clk
0:02:53.8]} 5... Qxe7 {[%clk 0:02:55.5]} 6. dxe5 {[%clk 0:02:52.2]} 6... Qxe5
{[%clk 0:02:49.9]} 7. Nf3 {[%clk 0:02:52]} 7... Qe7 {[%clk 0:02:45.9]} 8. e3
{[%clk 0:02:47.8]} 8... Nf6 {[%clk 0:02:45.4]} 9. Be2 {[%clk 0:02:42.3]} 9...
O-O {[%clk 0:02:44.9]} 10. O-O {[%clk 0:02:42.7]} 10... Na6 {[%clk 0:02:40.9]}
11. b3 {[%clk 0:02:42.1]} 11... Nc5 {[%clk 0:02:40.8]} 12. Ba3 {[%clk
0:02:38.3]} 12... d6 {[%clk 0:02:38.1]} 13. Qd4 {[%clk 0:02:37.6]} 13... Bf5
{[%clk 0:02:30.8]} 14. Rfd1 {[%clk 0:02:35.8]} 14... Rfd8 {[%clk 0:02:30.4]} 15.
Bb2 {[%clk 0:02:27.7]} 15... Bc2 {[%clk 0:02:27.7]} 16. Rd2 {[%clk 0:02:18.9]}
16... Bg6 {[%clk 0:02:27.5]} 17. Nh4 {[%clk 0:02:17.4]} 17... a5 {[%clk
0:02:18.9]} 18. Nxg6 {[%clk 0:02:03.3]} 18... hxg6 {[%clk 0:02:19.8]} 19. Rad1
{[%clk 0:02:03.7]} 19... a4 {[%clk 0:02:12.9]} 20. b4 {[%clk 0:02:03.9]} 20...
Ne6 {[%clk 0:02:12.8]} 21. Qd3 {[%clk 0:01:55.3]} 21... d5 {[%clk 0:02:08]} 22.
a3 {[%clk 0:01:48.6]} 22... dxc4 {[%clk 0:01:46.3]} 23. Qxc4 {[%clk 0:01:48.4]}
23... Rxd2 {[%clk 0:01:46.8]} 24. Rxd2 {[%clk 0:01:49.3]} 24... Rd8 {[%clk
0:01:47.4]} 25. Rxd8+ {[%clk 0:01:49.5]} 25... Qxd8 {[%clk 0:01:48.3]} 26. Qc2
{[%clk 0:01:50.3]} 26... Nd5 {[%clk 0:01:17]} 27. g3 {[%clk 0:01:43.9]} 27...
Nb6 {[%clk 0:01:11.9]} 28. Qc3 {[%clk 0:01:34.8]} 28... Qd5 {[%clk 0:01:10.6]}
29. h4 {[%clk 0:01:30.1]} 29... Qb3 {[%clk 0:01:04.2]} 30. Kg2 {[%clk
0:01:12.2]} 30... Qd5+ {[%clk 0:00:59.6]} 31. Bf3 {[%clk 0:01:11.8]} 31... Qb3
{[%clk 0:00:56]} 32. Be2 {[%clk 0:01:01.1]} 32... Qd5+ {[%clk 0:00:55.9]} 33.
Kg1 {[%clk 0:01:01.5]} 33... f6 {[%clk 0:00:50.5]} 34. Qc2 {[%clk 0:00:54.3]}
34... Kf7 {[%clk 0:00:47.3]} 35. Bd3 {[%clk 0:00:52.3]} 35... g5 {[%clk
0:00:40.1]} 36. h5 {[%clk 0:00:48.6]} 36... Qb3 {[%clk 0:00:30]} 37. Bg6+ {[%clk
0:00:40.2]} 37... Ke7 {[%clk 0:00:29.9]} 38. Kg2 {[%clk 0:00:36.4]} 38... Qxc2
{[%clk 0:00:29.7]} 39. Bxc2 {[%clk 0:00:35.8]} 39... Nc4 {[%clk 0:00:30.6]} 40.
Bc1 {[%clk 0:00:35.6]} 40... Nc7 {[%clk 0:00:23.4]} 41. Bxa4 {[%clk 0:00:34.1]}
41... Nb5 {[%clk 0:00:22.3]} 42. Bxb5 {[%clk 0:00:29.1]} 42... cxb5 {[%clk
0:00:23.2]} 43. g4 {[%clk 0:00:30]} 43... Ke6 {[%clk 0:00:16.8]} 44. f3 {[%clk
0:00:30]} 44... Kd5 {[%clk 0:00:14.1]} 45. Kf2 {[%clk 0:00:30.6]} 45... Nd6
{[%clk 0:00:10.7]} 46. Bb2 {[%clk 0:00:30.6]} 46... Nf7 {[%clk 0:00:09]} 47. f4
{[%clk 0:00:25.2]} 47... Kc4 {[%clk 0:00:02.5]} 48. Kf3 {[%clk 0:00:24.4]} 48...
Kb3 {[%clk 0:00:02.5]} 49. Bd4 {[%clk 0:00:18.2]} 49... Kxa3 {[%clk 0:00:03.1]}
50. Ke4 {[%clk 0:00:18.8]} 50... gxf4 {[%clk 0:00:01.6]} 51. exf4 {[%clk
0:00:19]} 51... Kxb4 {[%clk 0:00:02.5]} 52. Kf5 {[%clk 0:00:19.6]} 52... Kc4
{[%clk 0:00:02.3]} 53. Ba1 {[%clk 0:00:19]} 53... b4 {[%clk 0:00:01.5]} 54. Kg6
{[%clk 0:00:19.6]} 54... Nd6 {[%clk 0:00:01.3]} 55. Kxg7 {[%clk 0:00:20.2]}
55... Kb3 {[%clk 0:00:01.1]} 56. h6 {[%clk 0:00:20.6]} 56... Ka2 {[%clk
0:00:01.4]} 57. h7 {[%clk 0:00:17.5]} 57... Kxa1 {[%clk 0:00:01.9]} 58. h8=Q
{[%clk 0:00:18.1]} 58... b3 {[%clk 0:00:02.8]} 59. Qh1+ {[%clk 0:00:18.1]} 59...
Ka2 {[%clk 0:00:02.9]} 60. Qd5 {[%clk 0:00:18.3]} 60... Nc8 {[%clk 0:00:01.9]}
61. Qxb7 {[%clk 0:00:16.9]} 61... b2 {[%clk 0:00:02.3]} 62. Qxc8 {[%clk
0:00:16.9]} 62... b1=Q {[%clk 0:00:02.4]} 63. Qa8+ {[%clk 0:00:17.4]} 63... Kb2
{[%clk 0:00:03.3]} 64. Qb8+ {[%clk 0:00:18.3]} 64... Kc2 {[%clk 0:00:04.2]} 65.
Qxb1+ {[%clk 0:00:18.5]} 65... Kxb1 {[%clk 0:00:05.1]} 1-0

[Event "Late-Titled-Tuesday-Blitz-April-02-2024"]
[Site "Chess.com"]
[Date "2024.04.02"]
[Round "8"]
[White "temus_galaktionov"]
[Black "TigrVShlyape"]
[Result "1/2-1/2"]
[WhiteElo "2865"]
[BlackElo "2950"]
[TimeControl "180+1"]
[EndTime "15:28:01 PDT"]
[Termination "Game drawn - insufficient material"]

1. d4 {[%clk 0:03:00.9]} 1... f5 {[%clk 0:02:53.3]} 2. c4 {[%clk 0:03:01.2]}
2... Nf6 {[%clk 0:02:52.9]} 3. Nf3 {[%clk 0:03:02.1]} 3... g6 {[%clk 0:02:50.3]}
4. g3 {[%clk 0:03:02.4]} 4... Bg7 {[%clk 0:02:50.4]} 5. Bg2 {[%clk 0:03:03.1]}
5... d6 {[%clk 0:02:50.8]} 6. O-O {[%clk 0:03:03.4]} 6... O-O {[%clk 0:02:51]}
7. Nc3 {[%clk 0:03:03.3]} 7... c6 {[%clk 0:02:51.6]} 8. Qb3 {[%clk 0:02:47]}
8... Kh8 {[%clk 0:02:48.1]} 9. Bf4 {[%clk 0:02:42.8]} 9... a5 {[%clk 0:02:39.9]}
10. d5 {[%clk 0:02:30.3]} 10... Nh5 {[%clk 0:02:01.9]} 11. Be3 {[%clk
0:02:01.1]} 11... c5 {[%clk 0:01:42.5]} 12. Rad1 {[%clk 0:01:50.6]} 12... Na6
{[%clk 0:01:34.9]} 13. Bc1 {[%clk 0:01:22.2]} 13... f4 {[%clk 0:01:14.5]} 14.
Ng5 {[%clk 0:01:06.9]} 14... Nc7 {[%clk 0:01:11.6]} 15. Nb5 {[%clk 0:01:04.6]}
15... a4 {[%clk 0:01:09.3]} 16. Qd3 {[%clk 0:00:56.2]} 16... Nxb5 {[%clk
0:01:08.7]} 17. cxb5 {[%clk 0:00:55.8]} 17... Qe8 {[%clk 0:00:52.7]} 18. Ne6
{[%clk 0:00:52.2]} 18... Bxe6 {[%clk 0:00:51.7]} 19. dxe6 {[%clk 0:00:53.1]}
19... Ra5 {[%clk 0:00:50.3]} 20. b6 {[%clk 0:00:16.5]} 20... Qb5 {[%clk
0:00:46.5]} 21. Bxb7 {[%clk 0:00:15.4]} 21... Qxd3 {[%clk 0:00:39.7]} 22. Rxd3
{[%clk 0:00:16.3]} 22... Rb5 {[%clk 0:00:37.6]} 23. Bd5 {[%clk 0:00:09.9]} 23...
Rxb6 {[%clk 0:00:36.7]} 24. b3 {[%clk 0:00:10.5]} 24... axb3 {[%clk 0:00:35.2]}
25. axb3 {[%clk 0:00:11.4]} 25... Be5 {[%clk 0:00:33.4]} 26. Bc4 {[%clk
0:00:09.7]} 26... Kg7 {[%clk 0:00:32.5]} 27. Kg2 {[%clk 0:00:09.7]} 27... g5
{[%clk 0:00:31.5]} 28. Rg1 {[%clk 0:00:06.8]} 28... Kf6 {[%clk 0:00:30.9]} 29.
Rf1 {[%clk 0:00:06.4]} 29... Ng7 {[%clk 0:00:30.1]} 30. e3 {[%clk 0:00:06.6]}
30... Nxe6 {[%clk 0:00:28.3]} 31. exf4 {[%clk 0:00:06]} 31... gxf4 {[%clk
0:00:28.3]} 32. Re1 {[%clk 0:00:06.2]} 32... fxg3 {[%clk 0:00:18.3]} 33. hxg3
{[%clk 0:00:06.1]} 33... Nc7 {[%clk 0:00:15.2]} 34. f4 {[%clk 0:00:06.3]} 34...
Bd4 {[%clk 0:00:15]} 35. Be3 {[%clk 0:00:05.7]} 35... d5 {[%clk 0:00:14.8]} 36.
Rxd4 {[%clk 0:00:04.9]} 36... dxc4 {[%clk 0:00:14.1]} 37. Rxc4 {[%clk
0:00:05.3]} 37... Rxb3 {[%clk 0:00:14.1]} 38. Bxc5 {[%clk 0:00:05.6]} 38... Ne6
{[%clk 0:00:13.5]} 39. Bf2 {[%clk 0:00:05.2]} 39... Rd8 {[%clk 0:00:12.9]} 40.
Re2 {[%clk 0:00:05.1]} 40... Rd6 {[%clk 0:00:12.7]} 41. Rce4 {[%clk 0:00:05.3]}
41... h5 {[%clk 0:00:12.1]} 42. Kh3 {[%clk 0:00:03.6]} 42... Rb5 {[%clk
0:00:11.2]} 43. Kh4 {[%clk 0:00:03.7]} 43... Rbd5 {[%clk 0:00:11.2]} 44. Re5
{[%clk 0:00:04.1]} 44... Kf7 {[%clk 0:00:10]} 45. Kxh5 {[%clk 0:00:03.7]} 45...
Rxe5+ {[%clk 0:00:09.3]} 46. Rxe5 {[%clk 0:00:04.6]} 46... Rd2 {[%clk
0:00:08.4]} 47. Be3 {[%clk 0:00:04.8]} 47... Re2 {[%clk 0:00:07.9]} 48. Kg4
{[%clk 0:00:05]} 48... Ng7 {[%clk 0:00:07.3]} 49. Kf3 {[%clk 0:00:05.5]} 49...
Re1 {[%clk 0:00:07.2]} 50. Rb5 {[%clk 0:00:03.3]} 50... Ne8 {[%clk 0:00:06.5]}
51. g4 {[%clk 0:00:03.3]} 51... Nd6 {[%clk 0:00:06.5]} 52. Rb3 {[%clk
0:00:03.9]} 52... Nc4 {[%clk 0:00:06.3]} 53. Bd4 {[%clk 0:00:04.3]} 53... Nd2+
{[%clk 0:00:06.4]} 54. Kf2 {[%clk 0:00:04.8]} 54... Nxb3 {[%clk 0:00:06.7]} 55.
Kxe1 {[%clk 0:00:04.3]} 55... Nxd4 {[%clk 0:00:07.4]} 56. Kf2 {[%clk 0:00:05]}
56... Kf6 {[%clk 0:00:07.6]} 57. Ke3 {[%clk 0:00:05.4]} 57... Ne6 {[%clk
0:00:07.8]} 58. Ke4 {[%clk 0:00:06]} 58... Nc5+ {[%clk 0:00:07.9]} 59. Kd5
{[%clk 0:00:05.8]} 59... Nd7 {[%clk 0:00:08.2]} 60. Ke4 {[%clk 0:00:04]} 60...
Nf8 {[%clk 0:00:08.4]} 61. Kd4 {[%clk 0:00:03.6]} 61... e6 {[%clk 0:00:08]} 62.
Ke4 {[%clk 0:00:04.5]} 62... Nd7 {[%clk 0:00:08.1]} 63. Kd4 {[%clk 0:00:03.9]}
63... Kg6 {[%clk 0:00:08.4]} 64. Ke4 {[%clk 0:00:04.3]} 64... Kf6 {[%clk
0:00:08.6]} 65. Kd4 {[%clk 0:00:04.8]} 65... Nb6 {[%clk 0:00:08.3]} 66. Ke4
{[%clk 0:00:05.1]} 66... Nc4 {[%clk 0:00:08.7]} 67. Kd4 {[%clk 0:00:04.3]} 67...
Nd2 {[%clk 0:00:09]} 68. Ke3 {[%clk 0:00:04.4]} 68... Nf1+ {[%clk 0:00:09.2]}
69. Ke4 {[%clk 0:00:04.5]} 69... Nh2 {[%clk 0:00:09.3]} 70. g5+ {[%clk
0:00:04.9]} 70... Kg6 {[%clk 0:00:08.7]} 71. Ke5 {[%clk 0:00:05.3]} 71... Kf7
{[%clk 0:00:08.9]} 72. g6+ {[%clk 0:00:05]} 72... Ke7 {[%clk 0:00:08.2]} 73. g7
{[%clk 0:00:05.4]} 73... Ng4+ {[%clk 0:00:08.5]} 74. Ke4 {[%clk 0:00:05.9]}
74... Nh6 {[%clk 0:00:08.8]} 75. Ke5 {[%clk 0:00:05.4]} 75... Kf7 {[%clk
0:00:09.1]} 76. g8=Q+ {[%clk 0:00:04.2]} 76... Nxg8 {[%clk 0:00:09]} 77. f5
{[%clk 0:00:04.8]} 77... exf5 {[%clk 0:00:09.1]} 78. Kxf5 {[%clk 0:00:05.7]}
1/2-1/2

[Event "Late-Titled-Tuesday-Blitz-April-02-2024"]
[Site "Chess.com"]
[Date "2024.04.02"]
[Round "8"]
[White "fmcabralis"]
[Black "martabartel"]
[Result "1-0"]
[WhiteElo "2391"]
[BlackElo "2224"]
[TimeControl "180+1"]
[EndTime "15:28:01 PDT"]
[Termination "fmcabralis won by resignation"]

1. e4 {[%clk 0:03:00.9]} 1... c5 {[%clk 0:03:00]} 2. Nf3 {[%clk 0:02:59.6]} 2...
Nc6 {[%clk 0:02:59.5]} 3. d4 {[%clk 0:02:59.9]} 3... cxd4 {[%clk 0:02:59.3]} 4.
Nxd4 {[%clk 0:03:00.8]} 4... Nf6 {[%clk 0:02:59.6]} 5. Nc3 {[%clk 0:03:01]} 5...
d6 {[%clk 0:02:59.9]} 6. Bg5 {[%clk 0:02:59.8]} 6... e6 {[%clk 0:02:59.4]} 7.
Qd2 {[%clk 0:02:58.1]} 7... a6 {[%clk 0:02:59.7]} 8. O-O-O {[%clk 0:02:58]} 8...
Bd7 {[%clk 0:02:59.9]} 9. f4 {[%clk 0:02:53.4]} 9... h6 {[%clk 0:02:52.3]} 10.
Bxf6 {[%clk 0:02:49.1]} 10... Qxf6 {[%clk 0:02:50.3]} 11. Nb3 {[%clk 0:02:36]}
11... Qd8 {[%clk 0:02:49]} 12. g4 {[%clk 0:02:31]} 12... Qc7 {[%clk 0:02:45.8]}
13. Bg2 {[%clk 0:02:24.4]} 13... Be7 {[%clk 0:02:44.9]} 14. h4 {[%clk
0:02:21.9]} 14... Rc8 {[%clk 0:02:43.9]} 15. g5 {[%clk 0:02:18.1]} 15... h5
{[%clk 0:02:38.6]} 16. Kb1 {[%clk 0:02:12.8]} 16... b5 {[%clk 0:02:37.9]} 17.
Bh3 {[%clk 0:01:55.1]} 17... g6 {[%clk 0:02:32.5]} 18. Rhf1 {[%clk 0:01:41.2]}
18... b4 {[%clk 0:02:29.9]} 19. Ne2 {[%clk 0:01:35.7]} 19... a5 {[%clk
0:02:28.9]} 20. f5 {[%clk 0:01:27.8]} 20... gxf5 {[%clk 0:01:57.3]} 21. exf5
{[%clk 0:01:27.3]} 21... exf5 {[%clk 0:01:55.1]} 22. Bxf5 {[%clk 0:01:24.2]}
22... Ne5 {[%clk 0:01:54.1]} 23. Nbd4 {[%clk 0:01:15.2]} 23... O-O {[%clk
0:01:19.6]} 24. Bxd7 {[%clk 0:01:11.3]} 24... Qxd7 {[%clk 0:01:18.9]} 25. Nf5
{[%clk 0:01:11.6]} 25... Qe6 {[%clk 0:01:16]} 26. Ned4 {[%clk 0:00:59.7]} 26...
Qd7 {[%clk 0:01:00.5]} 27. Qe2 {[%clk 0:00:53.2]} 27... Bd8 {[%clk 0:00:47.9]}
28. Qxh5 {[%clk 0:00:50.9]} 28... Qc7 {[%clk 0:00:22]} 29. Nh6+ {[%clk
0:00:48.7]} 29... Kg7 {[%clk 0:00:22]} 30. Ndf5+ {[%clk 0:00:48.7]} 30... Kh8
{[%clk 0:00:20.4]} 31. Nxf7+ {[%clk 0:00:31.4]} 31... Kg8 {[%clk 0:00:20.6]} 32.
N7h6+ {[%clk 0:00:27.6]} 32... Kh8 {[%clk 0:00:20]} 33. Nf7+ {[%clk 0:00:18.3]}
33... Kg8 {[%clk 0:00:20.2]} 34. Nxe5 {[%clk 0:00:19.2]} 34... Qxc2+ {[%clk
0:00:18.8]} 35. Ka1 {[%clk 0:00:19.7]} 35... Rxf5 {[%clk 0:00:11.4]} 36. Qg6+
{[%clk 0:00:18.5]} 36... Kh8 {[%clk 0:00:10.6]} 37. Qxf5 {[%clk 0:00:10.9]}
37... Qxf5 {[%clk 0:00:08.1]} 38. Rxf5 {[%clk 0:00:11.3]} 38... dxe5 {[%clk
0:00:07.8]} 39. Rf8+ {[%clk 0:00:11.6]} 39... Kg7 {[%clk 0:00:07.6]} 40. Rfxd8
{[%clk 0:00:12.3]} 40... Rc2 {[%clk 0:00:07.5]} 41. Kb1 {[%clk 0:00:11.2]} 41...
Rh2 {[%clk 0:00:06.4]} 42. R8d5 {[%clk 0:00:10.9]} 42... a4 {[%clk 0:00:06.2]}
43. Rxe5 {[%clk 0:00:10.6]} 43... b3 {[%clk 0:00:06.6]} 44. axb3 {[%clk
0:00:10.2]} 44... axb3 {[%clk 0:00:06.8]} 45. Re3 {[%clk 0:00:10.9]} 45... Rxh4
{[%clk 0:00:06.3]} 46. Rxb3 {[%clk 0:00:11.6]} 46... Rg4 {[%clk 0:00:06.9]} 47.
Rc3 {[%clk 0:00:12.5]} 47... Rxg5 {[%clk 0:00:04.4]} 48. Rdd3 {[%clk 0:00:13.3]}
48... Rb5 {[%clk 0:00:04.4]} 49. Kc2 {[%clk 0:00:13.1]} 49... Kf6 {[%clk
0:00:04.4]} 50. b3 {[%clk 0:00:11.1]} 50... Ke5 {[%clk 0:00:04.4]} 51. Rc4
{[%clk 0:00:11.2]} 51... Ke6 {[%clk 0:00:04.8]} 52. Kc3 {[%clk 0:00:11.6]} 52...
Ke7 {[%clk 0:00:05.3]} 53. b4 {[%clk 0:00:12.1]} 53... Rb8 {[%clk 0:00:05.6]}
54. Re4+ {[%clk 0:00:12.3]} 54... Kf6 {[%clk 0:00:05.1]} 55. Rf3+ {[%clk
0:00:11.5]} 55... Kg5 {[%clk 0:00:05.4]} 56. Rc4 {[%clk 0:00:11.7]} 56... Ra8
{[%clk 0:00:05.6]} 57. Rd3 {[%clk 0:00:11.6]} 57... Ra3+ {[%clk 0:00:05.6]} 58.
Kd4 {[%clk 0:00:12.1]} 58... Ra1 {[%clk 0:00:05.9]} 59. Kc5 {[%clk 0:00:12.4]}
59... Re1 {[%clk 0:00:05.9]} 60. Rd5+ {[%clk 0:00:13.3]} 60... Kf6 {[%clk
0:00:05.8]} 61. Kb6 {[%clk 0:00:13.7]} 61... Ke6 {[%clk 0:00:05.9]} 62. Ra5
{[%clk 0:00:11.2]} 62... Rd1 {[%clk 0:00:06]} 63. Rc6+ {[%clk 0:00:11.4]} 63...
Kd7 {[%clk 0:00:06.4]} 64. Rcc5 {[%clk 0:00:11.2]} 64... Ke6 {[%clk 0:00:06.5]}
65. b5 {[%clk 0:00:09.9]} 65... Kd7 {[%clk 0:00:06.6]} 66. Rc7+ {[%clk
0:00:09.4]} 66... Kd6 {[%clk 0:00:06.9]} 67. Rc6+ {[%clk 0:00:09.9]} 67... Kd5
{[%clk 0:00:07.3]} 68. Ra8 {[%clk 0:00:10.3]} 68... Rb1 {[%clk 0:00:07.2]} 69.
Rd8+ {[%clk 0:00:10.7]} 69... Ke5 {[%clk 0:00:07.6]} 70. Rc5+ {[%clk 0:00:10.9]}
70... Ke6 {[%clk 0:00:07.2]} 71. Kc6 {[%clk 0:00:11.2]} 71... Ke7 {[%clk
0:00:06.9]} 72. Rd7+ {[%clk 0:00:11]} 72... Ke8 {[%clk 0:00:06.9]} 73. Rdd5
{[%clk 0:00:10.4]} 73... Ke7 {[%clk 0:00:07]} 74. b6 {[%clk 0:00:10.8]} 74...
Ke6 {[%clk 0:00:07]} 75. b7 {[%clk 0:00:11.1]} 75... Ke7 {[%clk 0:00:07]} 76.
Kc7 {[%clk 0:00:11.4]} 76... Ke8 {[%clk 0:00:05.4]} 77. b8=Q+ {[%clk 0:00:11]}
77... Rxb8 {[%clk 0:00:04.6]} 78. Kxb8 {[%clk 0:00:11.9]} 1-0

[Event "Late-Titled-Tuesday-Blitz-April-02-2024"]
[Site "Chess.com"]
[Date "2024.04.02"]
[Round "8"]
[White "Sargsyan_Shant"]
[Black "Hikaru"]
[Result "1-0"]
[WhiteElo "2984"]
[BlackElo "3248"]
[TimeControl "180+1"]
[EndTime "15:28:16 PDT"]
[Termination "Sargsyan_Shant won by resignation"]

1. c4 {[%clk 0:03:00.3]} 1... f5 {[%clk 0:02:54.2]} 2. Nf3 {[%clk 0:02:55.9]}
2... Nf6 {[%clk 0:02:54]} 3. Nc3 {[%clk 0:02:56]} 3... g6 {[%clk 0:02:53]} 4. g3
{[%clk 0:02:55.1]} 4... Bg7 {[%clk 0:02:52.6]} 5. Bg2 {[%clk 0:02:55.8]} 5... d6
{[%clk 0:02:52.7]} 6. d4 {[%clk 0:02:54.8]} 6... O-O {[%clk 0:02:51.9]} 7. O-O
{[%clk 0:02:55.2]} 7... c6 {[%clk 0:02:51.9]} 8. b3 {[%clk 0:02:48.1]} 8... Qa5
{[%clk 0:02:50.9]} 9. Bd2 {[%clk 0:02:42.8]} 9... Qc7 {[%clk 0:02:39.5]} 10. d5
{[%clk 0:02:43.2]} 10... e5 {[%clk 0:02:39.3]} 11. dxe6 {[%clk 0:02:42.9]} 11...
Bxe6 {[%clk 0:02:39.9]} 12. Rc1 {[%clk 0:02:42.3]} 12... Rd8 {[%clk 0:02:36]}
13. Ng5 {[%clk 0:02:41.1]} 13... Bc8 {[%clk 0:02:34.8]} 14. Re1 {[%clk
0:02:33.7]} 14... h6 {[%clk 0:02:32.7]} 15. Nh3 {[%clk 0:02:32]} 15... Qf7
{[%clk 0:02:30]} 16. e4 {[%clk 0:02:26.3]} 16... fxe4 {[%clk 0:02:27.1]} 17.
Nxe4 {[%clk 0:02:27.2]} 17... Nxe4 {[%clk 0:02:17.8]} 18. Rxe4 {[%clk
0:02:28.1]} 18... Nd7 {[%clk 0:02:18]} 19. Ba5 {[%clk 0:02:20.8]} 19... b6
{[%clk 0:02:15.1]} 20. Bc3 {[%clk 0:02:18.3]} 20... Nf6 {[%clk 0:02:02.9]} 21.
Re1 {[%clk 0:02:13.5]} 21... Bg4 {[%clk 0:01:42]} 22. Qc2 {[%clk 0:02:01.1]}
22... Bf5 {[%clk 0:01:40]} 23. Qb2 {[%clk 0:01:58]} 23... Rac8 {[%clk
0:01:38.1]} 24. Nf4 {[%clk 0:01:56.2]} 24... g5 {[%clk 0:01:38.4]} 25. Ne2
{[%clk 0:01:55.6]} 25... Be4 {[%clk 0:01:35.4]} 26. Nd4 {[%clk 0:01:50.5]} 26...
Re8 {[%clk 0:01:25.3]} 27. f3 {[%clk 0:01:27.7]} 27... Bd3 {[%clk 0:01:07]} 28.
Bh3 {[%clk 0:01:20.5]} 28... g4 {[%clk 0:01:04.1]} 29. Bxg4 {[%clk 0:01:16.2]}
29... Nxg4 {[%clk 0:01:03.9]} 30. fxg4 {[%clk 0:01:17.1]} 30... Rxe1+ {[%clk
0:00:49.8]} 31. Rxe1 {[%clk 0:01:17.1]} 31... Re8 {[%clk 0:00:50.5]} 32. Qd2
{[%clk 0:00:50.4]} 32... Rxe1+ {[%clk 0:00:48.9]} 33. Qxe1 {[%clk 0:00:51.3]}
33... d5 {[%clk 0:00:49.7]} 34. cxd5 {[%clk 0:00:34.6]} 34... Qxd5 {[%clk
0:00:49.8]} 35. Qe3 {[%clk 0:00:32.2]} 35... Qe4 {[%clk 0:00:26.1]} 36. Qxe4
{[%clk 0:00:27.3]} 36... Bxe4 {[%clk 0:00:27]} 37. Kf2 {[%clk 0:00:26.3]} 37...
Bb1 {[%clk 0:00:25.1]} 38. a3 {[%clk 0:00:24]} 38... Be4 {[%clk 0:00:21.3]} 39.
b4 {[%clk 0:00:23.2]} 39... Bd5 {[%clk 0:00:18.3]} 40. Ke3 {[%clk 0:00:23.6]}
40... Bf8 {[%clk 0:00:18.9]} 41. Nf5 {[%clk 0:00:19.8]} 41... c5 {[%clk
0:00:19]} 42. h4 {[%clk 0:00:19.6]} 42... Kh7 {[%clk 0:00:17.5]} 43. Kf4 {[%clk
0:00:18.6]} 43... Kg6 {[%clk 0:00:13.1]} 44. h5+ {[%clk 0:00:18.7]} 44... Kh7
{[%clk 0:00:13.1]} 45. g5 {[%clk 0:00:19.1]} 45... hxg5+ {[%clk 0:00:13.5]} 46.
Kxg5 {[%clk 0:00:20]} 46... cxb4 {[%clk 0:00:11.8]} 47. axb4 {[%clk 0:00:20.9]}
47... Bf3 {[%clk 0:00:06.2]} 48. g4 {[%clk 0:00:21.4]} 48... Bd1 {[%clk
0:00:06.9]} 49. Kh4 {[%clk 0:00:17.5]} 49... Bc2 {[%clk 0:00:07]} 50. Kg5 {[%clk
0:00:15.9]} 50... Bd1 {[%clk 0:00:07]} 51. Kf4 {[%clk 0:00:15.1]} 51... Kg8
{[%clk 0:00:05.6]} 52. Be1 {[%clk 0:00:05.6]} 52... Kh7 {[%clk 0:00:05.2]} 53.
Kg3 {[%clk 0:00:06.2]} 53... Kg8 {[%clk 0:00:05]} 54. Bd2 {[%clk 0:00:06.8]}
54... Bc2 {[%clk 0:00:05.4]} 55. Bc3 {[%clk 0:00:06.5]} 55... Kh7 {[%clk
0:00:04]} 56. Kf4 {[%clk 0:00:06.4]} 56... Bd1 {[%clk 0:00:04.3]} 57. Kg3 {[%clk
0:00:03.3]} 57... Bc2 {[%clk 0:00:04.8]} 58. Kh4 {[%clk 0:00:03.5]} 58... Bd3
{[%clk 0:00:04.5]} 59. Bd2 {[%clk 0:00:04.4]} 59... Bc2 {[%clk 0:00:04.3]} 60.
Be1 {[%clk 0:00:04.9]} 60... Bd3 {[%clk 0:00:04.6]} 61. Bc3 {[%clk 0:00:05.5]}
61... Bc2 {[%clk 0:00:05]} 62. Ne3 {[%clk 0:00:05.4]} 62... Be7+ {[%clk
0:00:04.8]} 63. g5 {[%clk 0:00:05.8]} 63... Bd3 {[%clk 0:00:05.2]} 64. Kg4
{[%clk 0:00:05.9]} 64... Be2+ {[%clk 0:00:05.5]} 65. Kh4 {[%clk 0:00:06.6]}
65... a5 {[%clk 0:00:05.4]} 66. bxa5 {[%clk 0:00:06.5]} 66... bxa5 {[%clk
0:00:06.3]} 67. Bxa5 {[%clk 0:00:07.4]} 67... Bf3 {[%clk 0:00:05]} 68. Bc3
{[%clk 0:00:06.5]} 68... Be2 {[%clk 0:00:05.4]} 69. Bf6 {[%clk 0:00:06.5]} 69...
Bb4 {[%clk 0:00:05]} 70. g6+ {[%clk 0:00:03.8]} 70... Kg8 {[%clk 0:00:05.6]} 71.
Kg5 {[%clk 0:00:03.7]} 71... Bd2 {[%clk 0:00:05.7]} 72. Bd4 {[%clk 0:00:04.3]}
72... Bxe3+ {[%clk 0:00:02]} 73. Bxe3 {[%clk 0:00:05.2]} 73... Bd3 {[%clk
0:00:02.7]} 74. h6 {[%clk 0:00:04.9]} 1-0